bitfinex-derivatives/quotes_SOLF0:USTF0_20251026
["timestamp","ask_amount","ask_price","bid_price","bid_amount"]
[1761473225247,2.74,195.53,195.49,2.73]
[1761473226250,6.72298293,195.53,195.49,2.73]
[1761473226446,2.74,195.53,195.49,2.73]
[1761473227455,6.72306986,195.53,195.49,2.73]
[1761473227643,2.74,195.53,195.49,2.73]
[1761473227848,2.74,195.53,195.47,66.7435]
[1761473228149,9.47720705,195.62,195.47,66.7435]
[1761473228150,2.76,195.51,195.47,69.4735]
[1761473228353,2.76,195.51,195.47,62.14]
[1761473228554,2.76,195.51,195.44,2.82]
[1761473228854,9.13445506,195.55,195.44,2.82]
[1761473228855,2.77,195.49,195.44,2.82]
[1761473230647,2.77,195.49,195.41,2.82]
[1761473230842,2.77,195.49,195.41,126.96]
[1761473231450,2.77,195.49,195.42,2.82]
[1761473231648,2.77,195.49,195.42,64.96]
[1761473233755,3.98440625,195.48,195.42,64.96]
[1761473233957,2.77,195.48,195.42,64.96]
[1761473234849,2.77,195.46,195.42,64.96]
[1761473236253,2.77,195.46,195.43,2.82]
[1761473236445,6.72663781,195.5,195.43,2.82]
[1761473236648,3.95663781,195.49,195.43,2.82]
[1761473236855,2.77,195.5,195.43,2.82]
[1761473237158,6.72652293,195.49,195.43,2.82]
[1761473237355,2.77,195.49,195.43,2.82]
[1761473238559,3.9570132,195.48,195.43,2.82]
[1761473238758,2.77,195.47,195.43,2.82]
[1761473240461,2.77,195.47,195.42,62.14]
[1761473240654,2.77,195.47,195.4,4.6052]
[1761473240854,2.77,195.47,195.41,62.08]
[1761473241555,2.77,195.47,195.41,64.9]
[1761473242360,2.77,195.45,195.41,64.9]
[1761473242754,2.77,195.45,195.41,2.82]
[1761473242955,2.77,195.45,195.42,62.08]
[1761473243559,2.77,195.45,195.42,64.9]
[1761473245252,2.77,195.45,195.42,2.82]
[1761473245453,2.77,195.45,195.42,64.9]
[1761473248660,2.77,195.45,195.42,62.08]
[1761473250054,2.77,195.45,195.42,64.9]
[1761473254166,6.72769676,195.47,195.43,2.82]
[1761473254369,2.77,195.47,195.43,2.82]
[1761473254562,2.77,195.47,195.42,64.9]
[1761473255166,2.77,195.45,195.42,62.08]
[1761473255553,2.77,195.45,195.39,69.4255]
[1761473255554,2.77,195.45,195.39,2.82]
[1761473255760,2.77,195.45,195.4,21.6]
[1761473256361,2.77,195.43,195.4,21.6]
[1761473257161,2.77,195.43,195.39,2.82]
[1761473259771,2.76,195.42,195.39,2.82]
[1761473260661,7.3646,195.44,195.39,2.82]
[1761473260858,2.76,195.43,195.39,2.82]
[1761473271272,2.76,195.42,195.39,2.82]
[1761473272169,2.76,195.42,195.36,66.6061]
[1761473272366,2.76,195.42,195.37,2.59]
[1761473273777,2.76,195.41,195.37,2.59]
[1761473274469,2.76,195.44,195.37,2.59]
[1761473274666,6.66427643,195.43,195.37,2.59]
[1761473274870,2.76,195.43,195.37,2.59]
[1761473275677,2.76,195.41,195.37,2.59]
[1761473277373,2.76,195.45,195.37,2.59]
[1761473277574,6.66499435,195.44,195.38,2.59]
[1761473277778,2.76,195.42,195.38,2.59]
[1761473280582,2.76,195.41,195.38,2.59]
[1761473282690,2.76,195.41,195.36,2.86]
[1761473284084,2.68,195.43,195.36,2.86]
[1761473284284,3.90606411,195.42,195.36,2.86]
[1761473284484,2.68,195.43,195.36,2.86]
[1761473284685,6.58644387,195.42,195.36,2.86]
[1761473284880,2.68,195.42,195.36,2.86]
[1761473285081,2.68,195.42,195.37,2.86]
[1761473285686,2.68,195.42,195.38,2.86]
[1761473287183,3.90724588,195.41,195.38,2.86]
[1761473287386,2.68,195.4,195.38,2.86]
[1761473287788,3.90724588,195.43,195.38,2.86]
[1761473288084,6.58724588,195.42,195.38,2.86]
[1761473288286,3.90724588,195.41,195.38,2.86]
[1761473288586,2.86,195.45,195.38,2.86]
[1761473288785,3.90739077,195.44,195.38,2.86]
[1761473288987,3.90739077,195.43,195.38,2.86]
[1761473289284,3.90739077,195.42,195.38,2.86]
[1761473289486,2.86,195.45,195.38,2.86]
[1761473289688,3.90744228,195.44,195.38,2.86]
[1761473289889,3.90744228,195.43,195.39,2.83]
[1761473290084,3.90744228,195.42,195.39,2.83]
[1761473290286,2.86,195.43,195.39,2.83]
[1761473290486,3.90759745,195.42,195.39,2.83]
[1761473290682,2.86,195.46,195.39,2.83]
[1761473290886,6.76759745,195.45,195.39,2.83]
[1761473291085,6.76759745,195.44,195.39,2.83]
[1761473291280,3.90759745,195.43,195.39,2.83]
[1761473291476,3.90759745,195.42,195.39,2.83]
[1761473291682,2.86,195.44,195.39,2.83]
[1761473291979,2.86,195.42,195.39,2.83]
[1761473292175,3.90814716,195.41,195.39,2.83]
[1761473292388,2.86,195.42,195.39,2.83]
[1761473292589,3.90859115,195.41,195.39,2.83]
[1761473292787,2.86,195.42,195.39,2.83]
[1761473292986,3.9086436,195.41,195.39,2.83]
[1761473293192,2.86,195.42,195.39,2.83]
[1761473293377,3.90901828,195.41,195.39,2.83]
[1761473293582,2.86,195.42,195.39,2.83]
[1761473293783,3.90901828,195.41,195.39,2.83]
[1761473293980,2.86,195.42,195.39,2.83]
[1761473294185,3.9090103,195.41,195.39,2.83]
[1761473294389,2.86,195.42,195.39,2.83]
[1761473294691,3.90941985,195.41,195.39,2.83]
[1761473294894,2.86,195.42,195.39,2.83]
[1761473295093,3.90941985,195.41,195.39,2.83]
[1761473295294,2.86,195.42,195.39,2.83]
[1761473295494,3.90994422,195.41,195.39,2.83]
[1761473295696,2.86,195.42,195.39,2.83]
[1761473295898,3.88145624,195.41,195.39,2.83]
[1761473296098,2.86,195.42,195.39,2.83]
[1761473296305,3.88216473,195.41,195.39,2.83]
[1761473296595,2.86,195.42,195.39,2.83]
[1761473296792,6.74211266,195.41,195.39,2.83]
[1761473296993,2.86,195.41,195.39,2.83]
[1761473297195,3.88291566,195.4,195.38,2.83]
[1761473297393,2.86,195.41,195.38,2.83]
[1761473297698,3.88291566,195.4,195.38,2.83]
[1761473297899,2.86,195.41,195.38,2.83]
[1761473298093,6.74291566,195.4,195.38,2.83]
[1761473298293,2.86,195.4,195.38,2.83]
[1761473299500,2.86,195.4,195.36,64.91]
[1761473299797,2.86,195.4,195.37,2.83]
[1761473301186,3.82708091,195.39,195.37,2.83]
[1761473301391,2.86,195.4,195.37,2.83]
[1761473303398,3.82685485,195.39,195.37,2.83]
[1761473303602,2.86,195.39,195.37,2.83]
[1761473304397,2.86,195.42,195.37,2.83]
[1761473304601,6.68671605,195.41,195.37,2.83]
[1761473304796,3.82671605,195.4,195.37,2.83]
[1761473305001,2.86,195.41,195.37,2.83]
[1761473305203,6.6865309,195.4,195.37,2.83]
[1761473305396,2.86,195.4,195.37,2.83]
[1761473308204,4.29836098,195.43,195.37,2.83]
[1761473308402,2.86,195.41,195.37,2.83]
[1761473308600,3.82602719,195.4,195.37,2.83]
[1761473308799,2.86,195.42,195.37,2.83]
[1761473308998,6.68602719,195.41,195.37,2.83]
[1761473309198,3.82602719,195.4,195.37,2.83]
[1761473309399,7.63608095,195.44,195.37,2.83]
[1761473309598,10.98388187,195.43,195.37,2.83]
[1761473309792,3.82608699,195.42,195.37,62.08]
[1761473310098,3.82608699,195.41,195.38,2.83]
[1761473310298,3.82608699,195.4,195.38,2.83]
[1761473310498,2.86,195.41,195.38,2.83]
[1761473310801,3.82613976,195.4,195.38,2.83]
[1761473311095,2.86,195.41,195.38,2.83]
[1761473311297,3.82610946,195.4,195.38,2.83]
[1761473311499,2.86,195.41,195.38,2.83]
[1761473311697,3.82610946,195.4,195.38,2.83]
[1761473311904,2.86,195.41,195.38,2.83]
[1761473312102,4.77608095,195.45,195.38,2.83]
[1761473312304,3.82599296,195.44,195.38,2.83]
[1761473312504,3.82599296,195.43,195.38,2.83]
[1761473312710,3.82599296,195.42,195.38,2.83]
[1761473313010,7.15751686,195.45,195.39,64.89]
[1761473313209,2.86,195.43,195.4,2.83]
[1761473313410,3.82607805,195.42,195.4,2.83]
[1761473313712,2.86,195.43,195.4,2.83]
[1761473313898,6.68607805,195.42,195.4,2.83]
[1761473314102,2.86,195.42,195.4,2.83]
[1761473315005,3.82603988,195.44,195.4,2.83]
[1761473315205,2.86,195.47,195.41,62.06]
[1761473315411,3.82531111,195.46,195.42,2.83]
[1761473315609,3.82531111,195.45,195.42,2.83]
[1761473315912,9.47720705,195.54,195.42,2.83]
[1761473315913,3.82501081,195.47,195.42,2.83]
[1761473316111,3.82501081,195.46,195.42,2.83]
[1761473316306,2.86,195.5,195.42,2.83]
[1761473316504,6.6835662,195.49,195.42,2.83]
[1761473316708,3.8235662,195.48,195.42,2.83]
[1761473317006,3.8235662,195.47,195.42,4.6047]
[1761473317311,2.86,195.49,195.43,2.83]
[1761473317498,6.68236688,195.48,195.43,2.83]
[1761473317703,3.82236688,195.47,195.43,2.83]
[1761473318000,2.86,195.48,195.43,2.83]
[1761473318199,3.8213581,195.47,195.43,2.83]
[1761473318404,2.86,195.48,195.43,2.83]
[1761473318611,3.8213581,195.47,195.43,2.83]
[1761473318814,2.86,195.48,195.43,2.83]
[1761473319016,3.8213581,195.47,195.43,2.83]
[1761473319215,2.87,195.51,195.43,2.83]
[1761473319509,3.82022414,195.5,195.44,2.64]
[1761473319707,2.87,195.51,195.44,2.64]
[1761473319708,3.82022414,195.49,195.44,2.64]
[1761473319911,3.82022414,195.48,195.44,2.64]
[1761473320111,3.82022414,195.5,195.44,2.64]
[1761473320312,2.87,195.48,195.44,2.64]
[1761473320610,3.82022414,195.48,195.44,2.64]
[1761473320815,2.87,195.51,195.44,2.64]
[1761473321014,3.82022414,195.5,195.44,2.64]
[1761473322711,2.87,195.51,195.44,2.64]
[1761473322918,3.82022414,195.52,195.45,2.64]
[1761473323218,6.69022414,195.53,195.45,2.64]
[1761473323419,3.82022414,195.52,195.45,2.64]
[1761473323812,2.87,195.51,195.45,2.64]
[1761473324020,2.87,195.5,195.45,64.64]
[1761473324422,2.87,195.5,195.45,2.64]
[1761473326428,3.80277849,195.5,195.45,2.64]
[1761473326628,2.87,195.49,195.45,2.64]
[1761473329224,2.87,195.49,195.41,2.64]
[1761473330024,2.87,195.48,195.41,2.64]
[1761473334126,2.87,195.47,195.41,2.64]
[1761473344334,2.71,195.46,195.35,64.86]
[1761473344534,2.71,195.44,195.36,62.04]
[1761473344727,4.77608095,195.48,195.36,62.04]
[1761473344728,2.71,195.43,195.36,62.04]
[1761473345429,2.71,195.43,195.36,64.9]
[1761473346636,2.71,195.43,195.37,2.86]
[1761473346829,3.80329928,195.45,195.37,2.86]
[1761473347030,6.51329928,195.46,195.37,2.86]
[1761473347230,6.51329928,195.45,195.37,2.86]
[1761473347431,2.71,195.45,195.37,2.86]
[1761473347932,2.71,195.45,195.38,4.6056]
[1761473348141,2.71,195.45,195.39,2.86]
[1761473349036,2.67,195.44,195.39,2.86]
[1761473349739,2.67,195.44,195.39,62.04]
[1761473349935,2.67,195.44,195.4,2.77]
[1761473352139,3.8047983,195.46,195.4,2.77]
[1761473352342,6.4747983,195.46,195.4,2.77]
[1761473352542,6.4747983,195.45,195.4,2.77]
[1761473352730,2.67,195.45,195.4,2.77]
[1761473353631,2.67,195.44,195.4,62.04]
[1761473353842,2.67,195.44,195.4,64.81]
[1761473354341,2.67,195.44,195.4,2.77]
[1761473355443,3.80653028,195.45,195.4,2.77]
[1761473355735,2.67,195.45,195.4,2.77]
[1761473356136,6.47653028,195.45,195.4,2.77]
[1761473356340,2.67,195.45,195.4,2.77]
[1761473356845,3.80996951,195.47,195.4,2.77]
[1761473357141,3.80996951,195.46,195.4,2.77]
[1761473357736,6.47996951,195.46,195.4,2.77]
[1761473357936,2.67,195.46,195.4,2.77]
[1761473358538,6.48041112,195.46,195.4,2.77]
[1761473358738,2.67,195.46,195.4,2.77]
[1761473359342,3.81072373,195.46,195.4,2.77]
[1761473359544,2.67,195.45,195.4,2.77]
[1761473360144,2.67,195.44,195.4,2.77]
[1761473361834,2.67,195.44,195.39,66.6454]
[1761473362043,2.67,195.44,195.39,66.6254]
[1761473362440,2.67,195.44,195.39,69.3954]
[1761473363037,2.67,195.44,195.39,2.77]
[1761473363233,2.67,195.43,195.39,62.02]
[1761473363638,2.67,195.43,195.36,2.77]
[1761473363844,2.67,195.43,195.37,62.02]
[1761473364442,2.67,195.43,195.35,62.0]
[1761473364637,2.67,195.38,195.26,2.77]
[1761473364843,2.67,195.36,195.26,2.77]
[1761473365038,2.67,195.34,195.26,2.77]
[1761473365245,2.67,195.33,195.26,2.77]
[1761473365445,2.67,195.32,195.26,2.77]
[1761473370353,2.67,195.32,195.26,48.75]
[1761473370752,2.67,195.32,195.27,2.77]
[1761473370949,2.67,195.32,195.28,2.77]
[1761473372247,2.67,195.41,195.28,2.77]
[1761473372555,2.67,195.4,195.28,2.77]
[1761473372754,2.67,195.39,195.28,2.77]
[1761473372954,3.79583836,195.39,195.28,2.77]
[1761473373161,2.67,195.38,195.28,2.77]
[1761473374056,2.67,195.38,195.3,2.77]
[1761473389974,2.67,195.38,195.27,62.0]
[1761473390267,2.67,195.38,195.26,2.84]
[1761473390672,2.81,195.37,195.26,2.84]
[1761473390866,2.81,195.37,195.24,4.609]
[1761473391074,2.81,195.36,195.24,2.84]
[1761473391271,4.77608095,195.4,195.24,2.84]
[1761473391272,2.81,195.35,195.24,2.84]
[1761473392475,2.81,195.34,195.24,2.84]
[1761473393270,2.81,195.33,195.24,2.84]
[1761473401080,3.80303392,195.35,195.25,2.84]
[1761473401275,2.81,195.36,195.25,2.84]
[1761473402078,2.81,195.36,195.27,2.73]
[1761473402677,2.84,195.35,195.27,2.73]
[1761473405483,6.64428454,195.35,195.27,2.73]
[1761473405677,2.84,195.35,195.29,2.73]
[1761473406689,6.64168442,195.35,195.29,2.73]
[1761473406885,2.84,195.35,195.29,2.73]
[1761473407990,6.64463518,195.35,195.29,2.73]
[1761473408291,3.81049938,195.34,195.29,2.73]
[1761473408486,2.64,195.38,195.29,2.73]
[1761473408686,6.44952122,195.37,195.29,2.73]
[1761473408886,3.80952122,195.36,195.29,2.73]
[1761473409088,6.44952122,195.36,195.29,2.73]
[1761473409290,3.80952122,195.35,195.29,2.73]
[1761473409485,6.44952122,195.34,195.29,2.73]
[1761473409680,2.64,195.34,195.29,2.73]
[1761473410082,2.64,195.32,195.29,2.73]
[1761473410592,3.81802147,195.36,195.29,2.73]
[1761473410795,3.81802147,195.38,195.29,2.73]
[1761473410998,3.81802147,195.37,195.29,2.73]
[1761473411202,3.81802147,195.39,195.31,2.73]
[1761473411397,3.81802147,195.38,195.31,2.73]
[1761473411596,3.81802147,195.39,195.31,2.73]
[1761473411799,3.81802147,195.38,195.31,2.73]
[1761473411993,3.81802147,195.39,195.31,2.73]
[1761473412193,3.81802147,195.38,195.31,2.73]
[1761473412393,3.81802147,195.39,195.32,2.73]
[1761473412590,3.81802147,195.41,195.32,2.73]
[1761473412801,3.81802147,195.4,195.32,2.73]
[1761473413499,2.64,195.39,195.32,2.73]
[1761473413702,6.45802147,195.39,195.32,2.73]
[1761473413889,2.64,195.39,195.32,2.73]
[1761473414594,3.81385706,195.39,195.32,2.73]
[1761473414794,2.64,195.38,195.32,2.73]
[1761473416694,3.81604596,195.41,195.3,2.73]
[1761473417300,3.81604596,195.41,195.36,2.73]
[1761473417488,2.64,195.42,195.37,2.73]
[1761473417691,3.81604596,195.42,195.37,2.73]
[1761473417894,3.81604596,195.44,195.37,2.73]
[1761473418804,6.45604596,195.44,195.37,2.73]
[1761473419002,3.81604596,195.43,195.37,2.73]
[1761473419302,2.64,195.44,195.37,2.73]
[1761473419707,6.45604596,195.44,195.37,2.73]
[1761473420002,3.81604596,195.43,195.37,2.73]
[1761473420402,2.64,195.44,195.37,2.73]
[1761473420803,6.45604596,195.44,195.37,2.73]
[1761473420997,2.64,195.44,195.37,2.73]
[1761473422300,2.64,195.44,195.38,62.0]
[1761473423408,2.64,195.44,195.38,64.73]
[1761473423601,6.45347178,195.44,195.38,64.73]
[1761473423801,2.64,195.44,195.38,2.73]
[1761473427114,2.64,195.48,195.38,2.73]
[1761473427704,3.81012584,195.48,195.38,2.73]
[1761473427909,2.64,195.47,195.38,2.73]
[1761473430911,2.64,195.47,195.38,7.3356]
[1761473431113,2.64,195.5,195.39,2.73]
[1761473431513,2.64,195.49,195.39,2.73]
[1761473431714,2.64,195.49,195.39,4.6054]
[1761473431917,2.64,195.49,195.4,2.73]
[1761473433018,2.64,195.54,195.4,2.73]
[1761473433323,2.64,195.53,195.4,2.73]
[1761473433518,7.2433,195.49,195.42,7.3347]
[1761473433720,7.2433,195.49,195.43,62.04]
[1761473433920,2.64,195.49,195.44,2.73]
[1761473434117,2.64,195.56,195.44,2.73]
[1761473434314,2.64,195.53,195.44,2.73]
[1761473435116,3.80150072,195.53,195.44,2.73]
[1761473435424,2.64,195.52,195.44,2.73]
[1761473435818,4.6029,195.51,195.44,2.73]
[1761473436023,2.64,195.5,195.44,2.73]
[1761473439826,4.6029,195.51,195.44,2.73]
[1761473441126,4.6029,195.51,195.45,2.86]
[1761473445329,2.78,195.5,195.45,2.86]
[1761473445827,4.6031,195.5,195.45,2.86]
[1761473446028,2.78,195.49,195.45,2.86]
[1761473446730,2.78,195.49,195.44,4.6042]
[1761473447126,2.78,195.49,195.45,2.86]
[1761473449034,4.6031,195.5,195.45,2.86]
[1761473450329,7.3831,195.5,195.45,2.86]
[1761473454437,2.78,195.49,195.45,2.86]
[1761473455535,4.6031,195.5,195.45,2.86]
[1761473455938,7.3831,195.5,195.45,2.86]
[1761473457538,7.3831,195.5,195.45,4.604]
[1761473457742,7.3831,195.5,195.46,2.86]
[1761473460438,2.78,195.49,195.46,2.86]
[1761473466151,4.6031,195.5,195.46,2.86]
[1761473466348,2.71,195.52,195.47,2.66]
[1761473467446,2.71,195.56,195.48,2.66]
[1761473467646,3.7871128,195.58,195.48,2.66]
[1761473467855,3.7871128,195.59,195.48,2.66]
[1761473468253,2.71,195.59,195.51,4.6026]
[1761473468458,2.71,195.59,195.53,2.78]
[1761473470858,43.47021,195.6,195.53,2.78]
[1761473471756,46.25021,195.6,195.53,2.78]
[1761473471957,46.25021,195.6,195.55,4.6016]
[1761473472159,2.78,195.59,195.56,62.0]
[1761473472559,2.78,195.59,195.53,7.3822]
[1761473472760,2.78,195.59,195.54,62.0]
[1761473473456,43.47021,195.6,195.55,2.78]
[1761473473659,46.25021,195.6,195.55,2.78]
[1761473474068,2.78,195.59,195.55,2.78]
[1761473475257,2.78,195.59,195.54,124.0]
[1761473475663,2.78,195.59,195.54,126.78]
[1761473476470,2.78,195.59,195.55,2.78]
[1761473478862,2.78,195.59,195.56,61.98]
[1761473480567,2.78,195.59,195.56,64.76]
[1761473482165,43.47021,195.6,195.57,61.98]
[1761473482370,43.47021,195.6,195.59,2.78]
[1761473482765,43.47021,195.6,195.58,64.78]
[1761473482966,46.25021,195.6,195.58,62.0]
[1761473484274,46.25021,195.6,195.58,2.78]
[1761473484977,43.47021,195.6,195.58,2.78]
[1761473487274,43.47021,195.6,195.59,2.78]
[1761473493479,43.47021,195.6,195.59,3.8]
[1761473494674,43.47021,195.6,195.59,65.8]
[1761473499985,2.78,195.65,195.59,70.4007]
[1761473500186,2.78,195.65,195.6,64.67]
[1761473500886,2.78,195.65,195.61,2.73]
[1761473501478,2.78,195.65,195.62,4.08]
[1761473501675,2.78,195.65,195.63,61.94]
[1761473503783,2.78,195.65,195.63,70.34]
[1761473505587,2.78,195.65,195.63,8.4]
[1761473505789,2.78,195.65,195.64,61.94]
[1761473506988,2.78,195.65,195.63,11.72]
[1761473507181,2.78,195.65,195.63,73.66]
[1761473507381,2.78,195.65,195.63,78.49]
[1761473510188,2.78,195.65,195.63,16.55]
[1761473511491,2.75,195.64,195.63,16.55]
[1761473512285,2.75,195.64,195.54,2.73]
[1761473512485,2.75,195.63,195.55,61.94]
[1761473512680,2.75,195.62,195.55,61.94]
[1761473512883,2.75,195.62,195.55,64.67]
[1761473513282,2.75,195.62,195.56,62.0]
[1761473513490,2.75,195.62,195.56,69.6]
[1761473514792,2.75,195.62,195.57,4.38]
[1761473515093,2.75,195.62,195.58,61.94]
[1761473515487,2.75,195.61,195.58,61.94]
[1761473518196,2.75,195.61,195.58,64.67]
[1761473518391,2.75,195.61,195.59,2.73]
[1761473518986,2.75,195.61,195.58,61.94]
[1761473519191,2.75,195.61,195.58,64.67]
[1761473520795,2.75,195.61,195.59,2.73]
[1761473522295,3.77005007,195.62,195.59,2.73]
[1761473522599,2.82,195.62,195.59,2.73]
[1761473523198,2.82,195.61,195.57,2.98]
[1761473523401,2.82,195.61,195.58,61.94]
[1761473524400,2.82,195.59,195.57,2.98]
[1761473526003,2.82,195.59,195.56,66.81]
[1761473526406,2.82,195.59,195.56,4.87]
[1761473526608,2.82,195.57,195.48,2.85]
[1761473526901,3.77059214,195.57,195.49,2.85]
[1761473527102,2.82,195.56,195.49,2.85]
[1761473528305,2.82,195.56,195.5,1.33]
[1761473529004,2.6,195.55,195.51,2.6]
[1761473530309,2.6,195.59,195.51,2.6]
[1761473530511,2.6,195.59,195.53,2.6]
[1761473533212,3.76184325,195.63,195.53,2.6]
[1761473533516,2.6,195.62,195.53,2.6]
[1761473534409,2.6,195.62,195.55,2.6]
[1761473535310,2.6,195.61,195.55,2.6]
[1761473535511,6.36184325,195.61,195.55,2.6]
[1761473535814,2.6,195.61,195.55,2.6]
[1761473538719,2.6,195.61,195.56,64.56]
[1761473539516,2.6,195.61,195.57,2.6]
[1761473541716,2.6,195.6,195.57,2.6]
[1761473546524,2.6,195.6,195.56,64.56]
[1761473547322,2.6,195.6,195.57,2.6]
[1761473548721,6.36780917,195.6,195.57,2.6]
[1761473548924,2.6,195.6,195.55,64.54]
[1761473549120,2.6,195.6,195.53,2.6]
[1761473549524,4.41200928,195.63,195.53,64.54]
[1761473549525,2.6,195.59,195.53,64.54]
[1761473549724,2.6,195.59,195.53,61.94]
[1761473550125,2.6,195.58,195.51,61.94]
[1761473550325,2.6,195.57,195.51,61.94]
[1761473551025,2.6,195.56,195.51,61.94]
[1761473551225,2.6,195.56,195.52,2.6]
[1761473556733,6.37294629,195.56,195.52,2.6]
[1761473556936,2.6,195.56,195.52,2.6]
[1761473557830,3.77460653,195.59,195.52,2.6]
[1761473558030,2.6,195.55,195.52,2.6]
[1761473563040,2.6,195.55,195.51,61.94]
[1761473563741,2.6,195.55,195.52,2.61]
[1761473564437,3.7786647,195.58,195.52,2.61]
[1761473564638,3.7786647,195.57,195.52,2.61]
[1761473565038,2.71,195.61,195.52,2.61]
[1761473565338,3.77792672,195.6,195.52,2.61]
[1761473565538,3.77792672,195.59,195.52,2.61]
[1761473565742,3.77792672,195.6,195.52,2.61]
[1761473565945,3.77792672,195.59,195.52,2.61]
[1761473566243,3.77792672,195.6,195.52,2.61]
[1761473566438,3.77792672,195.59,195.52,2.61]
[1761473566643,3.77792672,195.6,195.52,2.61]
[1761473566842,3.77792672,195.59,195.52,2.61]
[1761473567042,3.77792672,195.6,195.52,2.61]
[1761473567338,3.77792672,195.59,195.52,2.61]
[1761473567546,3.77792672,195.6,195.52,2.61]
[1761473567734,3.77792672,195.59,195.52,2.61]
[1761473567940,3.77792672,195.6,195.52,2.61]
[1761473568140,3.77792672,195.59,195.52,2.61]
[1761473568339,3.77792672,195.6,195.54,2.61]
[1761473568542,3.77792672,195.6,195.56,2.61]
[1761473568742,3.77792672,195.62,195.56,2.61]
[1761473568945,3.77792672,195.61,195.56,2.61]
[1761473569145,3.77792672,195.6,195.56,2.61]
[1761473569345,3.77792672,195.61,195.56,2.61]
[1761473569537,3.77792672,195.6,195.56,2.61]
[1761473569738,6.48792672,195.63,195.56,2.61]
[1761473569946,3.77792672,195.62,195.56,2.61]
[1761473570141,3.77792672,195.61,195.56,2.61]
[1761473570342,3.77792672,195.6,195.56,2.61]
[1761473570545,3.77792672,195.62,195.56,2.61]
[1761473570745,3.77792672,195.61,195.56,2.61]
[1761473570947,3.77792672,195.6,195.56,2.61]
[1761473571148,3.77792672,195.62,195.56,2.61]
[1761473571347,3.77792672,195.61,195.56,2.61]
[1761473571649,3.77792672,195.62,195.56,2.61]
[1761473571841,3.77792672,195.61,195.56,2.61]
[1761473572038,3.77792672,195.62,195.56,2.61]
[1761473572242,3.77792672,195.61,195.56,2.61]
[1761473572541,3.77792672,195.62,195.56,2.61]
[1761473572739,2.71,195.63,195.56,2.61]
[1761473572740,3.77792672,195.61,195.56,2.61]
[1761473572940,3.77792672,195.62,195.56,2.61]
[1761473573137,3.77792672,195.61,195.56,2.61]
[1761473573340,3.77792672,195.62,195.56,2.61]
[1761473573547,3.77792672,195.61,195.56,2.61]
[1761473573746,3.77792672,195.62,195.56,2.61]